bitfinex-derivatives/quotes_ETHF0:USTF0_20250329
["timestamp","ask_amount","ask_price","bid_price","bid_amount"]
[1743260526593,21.00522643,1845.3,1845.2,1.08441]
[1743260526793,22.42382643,1845.3,1845.2,4.62241]
[1743260527297,21.00522643,1845.3,1845.2,4.62241]
[1743260527991,21.00522643,1845.3,1845.2,6.08301]
[1743260529088,0.00813183,1845.4,1845.3,1.08435]
[1743260529294,0.00813183,1845.4,1845.3,2.47205]
[1743260529491,0.00813183,1845.4,1845.1,0.00813183]
[1743260529691,3.2078,1845.2,1844.0,7.81401984]
[1743260529889,3.2078,1844.6,1844.1,1.3877]
[1743260530085,1.81224,1844.5,1844.1,9.3823892]
[1743260530393,1.08494,1844.3,1844.2,3.626]
[1743260530798,1.08494,1844.3,1844.0,1.4045]
[1743260530799,1.08494,1844.3,1844.1,0.00813183]
[1743260531192,1.08494,1844.3,1844.1,7.11948404]
[1743260531496,1.08494,1844.3,1844.1,8.52398404]
[1743260531694,4.30085183,1844.4,1844.1,8.52398404]
[1743260531885,4.30085183,1844.4,1844.1,9.60903404]
[1743260532088,3.21593183,1844.4,1844.2,1.08499]
[1743260532290,3.21593183,1844.4,1844.3,1.08494]
[1743260532492,1.08448,1845.1,1844.8,1.08462]
[1743260532692,1.08455,1845.0,1844.8,3.635]
[1743260533000,1.08458,1844.9,1844.8,3.635]
[1743260533195,1.4743,1844.9,1844.8,3.635]
[1743260533801,0.00813183,1845.0,1844.9,1.08458]
[1743260534197,0.00813183,1845.0,1844.9,9.52013584]
[1743260534797,56.81193183,1845.0,1843.9,1.81601984]
[1743260534998,3.2078,1844.2,1843.9,1.81601984]
[1743260535191,1.08522,1843.9,1843.6,1.4246]
[1743260535396,4.29295,1844.0,1843.6,1.4246]
[1743260535797,3.2078,1844.0,1843.6,1.4246]
[1743260535998,1.08519,1843.9,1843.6,5.29973183]
[1743260536195,1.0852,1843.9,1843.7,1.4793]
[1743260536513,1.08522,1843.9,1843.7,1.4793]
[1743260536803,1.08523,1843.8,1843.7,1.4793]
[1743260536994,4.29303,1843.8,1843.7,1.4793]
[1743260537597,3.2078,1843.8,1843.7,1.4793]
[1743260537805,4.29303,1843.8,1843.7,1.4793]
[1743260538003,5.78103,1843.8,1843.7,1.4793]
[1743260538708,4.6958,1843.8,1843.7,1.4793]
[1743260538904,3.21593183,1844.0,1843.7,1.4793]
[1743260539107,3.21593183,1844.0,1843.8,0.728]
[1743260539306,3.21593183,1844.0,1843.9,1.362]
[1743260540403,4.57023183,1844.0,1843.9,1.362]
[1743260540997,1.36243183,1844.0,1843.9,1.362]
[1743260541803,0.00813183,1844.0,1843.9,2.44717]
[1743260542199,0.00813183,1844.0,1843.9,1.362]
[1743260542799,0.00813183,1844.0,1843.9,2.44717]
[1743260543010,0.00813183,1844.0,1843.9,6.29217]
[1743260544410,3.2078,1844.4,1844.2,1.08496]
[1743260544604,1.08482,1844.5,1844.3,2.1211]
[1743260544806,4.2926,1844.6,1844.3,1.77824]
[1743260545104,1.08529,1843.7,1843.2,3.2078]
[1743260545403,1.08567,1843.1,1842.9,3.934]
[1743260545603,2.71338,1843.6,1842.9,4.61270748]
[1743260545604,3.2078,1843.2,1842.9,4.61270748]
[1743260545804,1.41030748,1843.1,1842.9,4.61270748]
[1743260546006,1.41030748,1843.1,1842.9,4.59611496]
[1743260546317,2.49598748,1843.1,1842.9,4.59611496]
[1743260546514,1.08576,1842.9,1842.8,0.00813183]
[1743260546712,4.29353,1843.0,1842.8,0.00813183]
[1743260546908,3.2078,1843.0,1842.8,0.00813183]
[1743260547415,1.08576,1842.9,1842.8,0.00813183]
[1743260548811,4.29354,1843.0,1842.8,0.00813183]
[1743260549016,1.382,1842.9,1842.8,0.00813183]
[1743260549212,2.46776,1842.9,1842.8,0.00813183]
[1743260549616,1.382,1842.9,1842.8,0.00813183]
[1743260550017,3.21593183,1843.2,1842.8,1.09391183]
[1743260550316,5.68352183,1843.2,1842.9,4.7068]
[1743260550617,5.66692931,1843.2,1842.9,0.7248]
[1743260551011,1.382,1843.1,1842.9,0.7248]
[1743260551317,1.382,1843.1,1842.9,0.70820748]
[1743260552009,1.382,1843.1,1842.9,1.79396748]
[1743260552413,1.382,1843.1,1842.9,0.70820748]
[1743260552715,1.382,1843.1,1842.9,1.79393748]
[1743260552913,1.382,1843.1,1842.9,0.70820748]
[1743260553118,1.382,1843.1,1842.9,1.79392748]
[1743260553315,1.382,1843.1,1842.9,0.70820748]
[1743260553710,1.382,1843.1,1842.9,1.79396748]
[1743260553915,1.382,1843.1,1842.9,1.79394748]
[1743260554411,3.20747114,1843.2,1842.9,0.70820748]
[1743260554611,4.65653931,1843.4,1842.9,0.70820748]
[1743260554810,3.2078,1843.4,1843.1,1.08561]
[1743260555006,4.29327,1843.4,1843.1,5.05061]
[1743260555713,4.30140183,1843.4,1843.1,5.05061]
[1743260556017,4.30140183,1843.4,1843.2,1.3824]
[1743260556321,3.21593183,1843.4,1843.2,1.3824]
[1743260556512,1.08553,1843.3,1843.2,1.3824]
[1743260557119,4.30144183,1843.4,1843.2,1.3824]
[1743260557512,1.08553,1843.3,1843.2,1.3824]
[1743260557712,1.4731,1843.3,1843.2,1.3824]
[1743260558009,2.55863,1843.3,1843.2,1.3824]
[1743260558716,0.00813183,1843.4,1843.3,1.08553]
[1743260558912,0.00813183,1843.4,1843.3,1.76913]
[1743260559314,0.00813183,1843.4,1843.3,3.20633]
[1743260559616,3.2078,1843.6,1843.5,1.08541]
[1743260559819,3.2078,1843.6,1843.5,5.04241]
[1743260560023,3.2078,1843.6,1843.4,1.4372]
[1743260560213,3.2078,1843.6,1843.4,2.52265]
[1743260560520,1.4731,1843.5,1843.4,2.52265]
[1743260560718,3.2078,1843.6,1843.5,1.08541]
[1743260560913,0.00813183,1843.6,1843.5,2.51011]
[1743260562211,3.2078,1844.0,1843.9,1.08517]
[1743260562415,3.2078,1844.0,1843.9,5.03617]
[1743260562615,3.2078,1844.0,1843.9,3.951]
[1743260563019,3.2078,1844.0,1843.9,6.46087]
[1743260563218,3.2078,1844.0,1843.9,5.3757]
[1743260563425,3.2078,1844.0,1843.9,6.46087]
[1743260564918,0.00813183,1844.1,1844.0,1.08511]
[1743260565121,0.00813183,1844.1,1844.0,1.4753]
[1743260565321,1.48083183,1844.1,1844.0,1.4753]
[1743260565526,1.48083183,1844.1,1844.0,2.56041]
[1743260566127,1.48083183,1844.1,1844.0,1.4753]
[1743260566325,0.00813183,1844.1,1844.0,2.56041]
[1743260567426,1.4727,1844.4,1844.3,1.08494]
[1743260567929,1.4727,1844.4,1844.2,5.02396]
[1743260568129,1.4727,1844.4,1844.3,2.53644]
[1743260569126,3.21316951,1844.5,1844.3,2.53644]
[1743260569328,0.00536951,1844.5,1844.4,2.53638]
[1743260569732,1.39426951,1844.5,1844.4,2.53638]
[1743260569930,5.68688951,1844.5,1844.3,1.0849]
[1743260570133,4.60206951,1844.5,1844.4,1.437]
[1743260570330,2.7122,1844.4,1843.2,3.2078]
[1743260570632,1.08547,1843.4,1843.3,1.437]
[1743260571221,1.3889,1843.4,1843.3,1.437]
[1743260572140,2.47437,1843.4,1843.3,1.437]
[1743260572731,1.3889,1843.4,1843.3,1.437]
[1743260572936,2.47437,1843.4,1843.3,1.437]
[1743260573329,1.3889,1843.4,1843.3,1.437]
[1743260573530,2.47437,1843.4,1843.3,1.437]
[1743260575231,1.3889,1843.4,1843.3,1.437]
[1743260575638,2.47437,1843.4,1843.3,1.437]
[1743260577628,3.21593183,1843.5,1843.3,2.52247]
[1743260577629,0.00813183,1843.5,1843.3,2.52247]
[1743260577835,0.00813183,1843.5,1843.4,1.4075]
[1743260578037,1.09354183,1843.5,1843.4,1.4075]
[1743260578336,0.00813183,1843.5,1843.4,1.4075]
[1743260579329,0.00813183,1843.5,1843.4,2.49297]
[1743260579735,3.2078,1844.1,1843.4,7.1153]
[1743260579943,3.2078,1844.3,1843.6,2.71334]
[1743260580142,3.2078,1844.1,1843.7,5.3886]
[1743260580335,1.0852,1843.9,1843.7,5.3886]
[1743260580639,2.43365,1844.0,1843.7,6.47389]
[1743260580843,2.43901951,1844.0,1843.7,6.47389]
[1743260581045,0.00536951,1844.0,1843.9,1.08517]
[1743260581339,3.6879,1844.6,1843.8,8.35154645]
[1743260581637,3.2078,1844.4,1843.9,6.93794645]
[1743260581830,1.08509,1844.1,1843.9,1.4136]
[1743260582134,3.2078,1844.2,1844.0,1.4683]
[1743260582330,1.438,1844.1,1844.0,1.4683]
[1743260582934,1.08515,1844.0,1843.8,3.993]
[1743260583141,1.438,1843.9,1843.8,3.993]
[1743260583343,3.2078,1844.0,1843.8,5.07823]
[1743260584048,3.2078,1844.0,1843.9,1.08517]
[1743260584338,3.2078,1844.2,1843.9,1.08516]
[1743260584646,4.2928,1844.2,1843.9,1.79674]
[1743260585640,1.08506,1844.1,1843.9,0.7116]
[1743260585837,2.45678,1844.1,1843.9,0.7116]
[1743260586345,1.3717,1844.1,1843.9,1.79677]
[1743260586641,1.3717,1844.1,1843.9,0.7116]
[1743260587137,1.3717,1844.1,1843.9,1.79675]
[1743260587343,3.2078,1844.2,1844.0,1.08506]
[1743260587844,1.08498,1844.3,1844.0,1.08506]
[1743260588243,1.4392,1844.3,1844.1,1.08505]
[1743260588439,1.4392,1844.3,1844.1,5.04805]
[1743260588647,3.2078,1844.4,1844.2,1.085]
[1743260588841,3.2078,1844.4,1844.3,0.723]
[1743260589241,3.2078,1844.4,1843.8,5.92085]
[1743260589242,11.6438,1844.4,1843.1,3.2078]
[1743260589539,3.2078,1843.6,1843.1,3.2078]
[1743260589747,1.0855,1843.4,1843.1,4.29343]
[1743260589930,1.4392,1843.3,1843.1,4.29343]
[1743260590634,2.52473,1843.3,1843.1,3.2078]
[1743260590837,1.4392,1843.3,1843.1,4.29343]
[1743260592446,1.4392,1843.3,1843.1,1.08563]
[1743260593144,0.00813183,1843.4,1843.3,1.08553]
[1743260593343,0.00813183,1843.4,1843.3,5.07553]
[1743260594547,1.3433,1843.7,1843.5,1.08536]
[1743260594746,1.3433,1843.7,1843.6,0.7006]
[1743260595140,3.2078,1843.8,1843.6,0.7006]
[1743260595341,3.2078,1844.5,1843.6,16.06500118]
[1743260595547,4.681,1844.5,1844.1,1.08501]
[1743260595750,1.08489,1844.4,1844.2,3.99]
[1743260596042,1.4732,1844.4,1844.2,5.3937]
[1743260596351,1.4732,1844.4,1844.2,6.47869]
[1743260597048,2.55808,1844.4,1844.2,5.3937]
[1743260597247,3.2078,1844.3,1843.9,4.00013183]
[1743260597441,4.2929,1844.1,1843.9,5.41953183]
[1743260597644,2.53601,1844.0,1843.9,5.41953183]
[1743260598045,1.4509,1844.0,1843.9,5.41953183]
[1743260599851,4.29289,1844.1,1843.9,5.41953183]
[1743260601154,1.08511,1844.0,1843.9,5.41953183]
[1743260601347,2.49971,1844.0,1843.9,5.41953183]
[1743260601547,3.2078,1844.1,1843.9,6.50470183]
[1743260602352,5.70746,1844.1,1843.9,6.50470183]
[1743260602753,4.6224,1844.1,1843.9,6.50470183]
[1743260603654,3.2078,1844.1,1843.9,6.50468183]
[1743260603855,4.29286,1844.1,1843.9,6.50468183]
[1743260604046,3.2078,1844.1,1844.0,1.08511]
[1743260604251,5.6487,1844.4,1844.1,1.08501]
[1743260604552,4.5638,1844.4,1844.2,2.47098]
[1743260604751,5.6487,1844.4,1844.2,1.386]
[1743260605257,1.08494,1844.3,1844.2,1.386]
[1743260606161,1.4822,1844.3,1844.2,1.386]
[1743260606361,2.56714,1844.3,1844.2,1.386]
[1743260609356,4.29273,1844.4,1844.2,1.386]
[1743260609562,1.08494,1844.3,1844.2,5.323]
[1743260610249,2.57544,1844.3,1844.2,5.323]
[1743260610451,1.4905,1844.3,1844.2,6.408]
[1743260610655,4.29273,1844.4,1844.2,5.323]
[1743260610960,1.08494,1844.3,1844.2,5.323]
[1743260611167,2.57544,1844.3,1844.2,5.323]
[1743260612063,1.4905,1844.3,1844.2,6.408]
[1743260612461,1.08511,1844.0,1843.9,0.00813183]
[1743260612660,2.71313,1843.8,1843.2,0.7216]
[1743260612865,4.29333,1843.3,1843.2,0.7216]
[1743260613364,3.2078,1843.3,1843.2,0.7216]
[1743260613768,4.29333,1843.3,1843.2,0.7216]
[1743260613974,3.2078,1843.3,1843.2,0.7216]
[1743260615070,4.29333,1843.3,1843.2,0.7216]
[1743260615472,3.2078,1843.3,1843.2,0.7216]
[1743260616672,4.29333,1843.3,1843.2,0.7216]
[1743260617068,0.00813183,1843.4,1843.2,0.7216]
[1743260617280,0.00813183,1843.4,1843.2,1.80716]
[1743260618371,0.00813183,1843.4,1843.3,1.08553]
[1743260619966,0.00813183,1843.4,1843.3,7.99847823]
[1743260620170,4.2931,1843.7,1843.4,1.08542]
[1743260620371,4.2931,1843.7,1843.5,3.954]
[1743260621180,3.2078,1843.7,1843.5,5.03936]
[1743260621667,1.08526,1843.8,1843.5,5.03936]
[1743260621872,4.6524,1844.1,1843.5,3.954]
[1743260622878,1.08513,1844.0,1843.7,1.08526]
[1743260623078,1.4446,1843.9,1843.8,3.947]
[1743260623379,4.29277,1844.3,1844.0,1.0851]
[1743260623576,5.73737,1844.3,1844.0,1.0851]
[1743260623776,5.73737,1844.3,1844.1,3.942]
[1743260624474,4.6524,1844.3,1844.1,5.02705]
[1743260624682,4.6524,1844.3,1844.1,3.942]
[1743260625279,4.6524,1844.3,1844.1,5.02704]
[1743260625480,4.6524,1844.3,1844.1,3.942]
[1743260625682,4.29277,1844.3,1844.1,3.942]
[1743260625979,3.2078,1844.3,1843.9,4.6701]
[1743260626183,1.4014,1844.2,1844.0,1.4409]
[1743260626376,1.4014,1844.2,1844.0,2.526]
[1743260627870,4.29279,1844.3,1844.0,2.526]
[1743260628077,3.2078,1844.3,1844.1,1.08505]
[1743260628276,4.29274,1844.3,1844.2,1.4608]
[1743260632182,1.085,1844.2,1844.1,0.00813183]
[1743260632377,2.4751,1844.2,1844.1,1.37123183]
[1743260632982,2.4751,1844.2,1844.1,0.00813183]
[1743260633181,1.08523,1843.8,1843.7,5.2861]
[1743260633382,1.08523,1843.8,1843.7,1.3631]
[1743260633579,1.08529,1843.7,1843.6,0.74]
[1743260633888,2.57239,1843.7,1843.6,0.74]
[1743260636377,5.78019,1843.7,1843.6,0.74]
[1743260638289,4.29309,1843.7,1843.6,0.74]
[1743260640080,3.2078,1843.7,1843.6,0.74]
[1743260640793,4.29309,1843.7,1843.6,0.74]
[1743260641291,3.2078,1843.7,1843.6,0.74]
[1743260641493,0.00813183,1843.8,1843.6,2.2037]
[1743260641693,1.09336183,1843.8,1843.7,1.4637]
[1743260641907,2.57276183,1843.8,1843.7,1.4637]
[1743260645297,0.00813183,1843.8,1843.7,6.42799]
[1743260646695,3.2078,1844.1,1843.9,1.08515]
[1743260646894,4.29286,1844.1,1844.0,2.0994]
[1743260649690,3.2078,1844.1,1844.0,3.18451]
[1743260649990,4.29278,1844.3,1844.0,7.04751]
[1743260650196,4.29278,1844.3,1844.1,1.3613]
[1743260650996,3.2078,1844.3,1844.1,2.44634]
[1743260651188,4.29274,1844.3,1844.2,0.7271]
[1743260651389,1.08494,1844.3,1844.2,2.0884]
[1743260651694,4.29274,1844.3,1844.2,2.0884]
[1743260651886,1.08489,1844.4,1844.2,3.17335]
[1743260652092,3.2078,1844.4,1844.3,2.56054]
[1743260652289,2.56488,1844.4,1844.3,1.4756]
[1743260653089,1.48,1844.4,1844.3,1.4756]
[1743260653290,1.08485,1844.5,1844.3,2.56054]
[1743260653495,4.2926,1844.6,1844.4,1.77596]
[1743260653690,1.48,1844.6,1844.4,3.25156]
[1743260653890,19.89405837,1844.7,1844.5,2.5604]
[1743260654194,18.80931837,1844.7,1844.6,1.4756]
[1743260654593,18.80931837,1844.7,1844.6,2.56036]
[1743260655091,18.80931837,1844.7,1844.6,3.26996]
[1743260655291,18.80931837,1844.7,1844.6,7.11696]
[1743260655794,3.2078,1844.8,1844.7,1.0847]
[1743260656199,3.2078,1844.8,1844.7,2.5402]
[1743260656789,1.4908,1845.0,1844.8,1.08461]
[1743260656996,1.4908,1845.0,1844.9,2.1385]
[1743260657191,23.10162837,1845.1,1844.9,2.1385]
[1743260657401,18.80931837,1845.1,1845.0,1.4555]
[1743260657697,18.80931837,1845.1,1845.0,2.1651]
[1743260657898,1.4908,1845.2,1845.0,2.1651]
[1743260658093,1.4908,1845.2,1845.1,1.4641]
[1743260658497,2.57521,1845.2,1845.1,1.4641]
[1743260659200,1.4908,1845.2,1845.1,1.4641]
[1743260659798,3.2078,1845.3,1845.1,1.4641]
[1743260660096,4.29217,1845.3,1845.2,3.836]
[1743260660401,3.2078,1845.3,1845.2,3.836]
[1743260660602,3.2078,1845.3,1845.2,5.3001]
[1743260660804,3.2078,1845.3,1845.2,6.38451]
[1743260660999,3.2078,1845.3,1845.2,5.3001]
[1743260661400,4.29205,1845.5,1845.2,6.38451]
[1743260661602,4.29205,1845.5,1845.3,2.1621]
[1743260661792,1.3881,1845.6,1845.4,1.4827]
[1743260661996,2.47231,1845.6,1845.4,1.4827]
[1743260662503,2.47231,1845.6,1845.4,2.56698]
[1743260662702,1.3881,1845.6,1845.4,3.27108]
[1743260663002,23.10127837,1845.7,1845.5,1.4827]
[1743260663201,23.10127837,1845.7,1845.5,6.39292]
[1743260663202,24.48937837,1845.7,1845.5,6.39292]
[1743260663399,18.80931837,1845.7,1845.6,1.08417]
[1743260663600,18.80931837,1845.7,1845.6,2.56687]
[1743260663799,2.47206,1846.0,1845.7,1.08408]
[1743260663997,1.3881,1845.9,1845.8,2.1621]
[1743260665505,3.2078,1845.9,1845.8,7.06514]
[1743260665707,3.2078,1845.9,1845.8,7.06516]
[1743260667195,3.2078,1845.9,1845.8,7.60756]
[1743260667600,3.2078,1845.9,1845.8,7.06516]
[1743260667904,3.2078,1845.9,1845.8,7.60756]
[1743260668112,3.2078,1845.9,1845.8,7.06516]
[1743260668302,3.2078,1845.9,1845.8,7.78746]
[1743260668504,3.2078,1846.1,1845.9,1.08396]
[1743260668705,3.2078,1846.1,1846.0,1.3846]
[1743260669207,3.2078,1846.1,1846.0,2.46854]
[1743260669405,4.2916,1846.3,1846.0,2.46854]
[1743260669608,1.4522,1846.2,1846.1,1.3846]
[1743260669803,4.2916,1846.3,1846.1,5.1926]
[1743260670208,4.2916,1846.3,1846.2,1.3508]
[1743260672608,1.08382,1846.2,1846.1,3.808]
[1743260672813,1.08382,1846.2,1846.1,6.24268]
[1743260673804,4.29162,1846.3,1846.1,6.24268]
[1743260674000,4.29156,1846.3,1846.2,2.47632]
[1743260674203,3.2078,1846.3,1846.2,2.47632]
[1743260674812,4.29149,1846.5,1846.4,1.0837]
[1743260675107,4.29145,1846.5,1846.3,3.19652]
[1743260675312,4.29145,1846.5,1846.4,5.1825]
[1743260676717,3.2078,1846.5,1846.4,5.1825]
[1743260677215,4.29145,1846.5,1846.4,5.1825]
[1743260677712,3.2078,1846.5,1846.4,5.1825]
[1743260677911,4.29145,1846.5,1846.4,5.1825]
[1743260678812,3.2078,1846.7,1846.4,6.2662]
[1743260679009,4.29139,1846.7,1846.5,1.347]
[1743260679716,1.08359,1846.6,1846.5,1.347]
[1743260680510,3.2078,1846.7,1846.5,1.347]
[1743260680913,1.08359,1846.6,1846.5,1.347]
[1743260681410,1.08365,1846.5,1846.4,3.78013183]
[1743260681612,4.29145,1846.5,1846.4,0.00813183]
[1743260682319,4.78225,1846.5,1846.4,0.00813183]
[1743260684319,2.70927,1846.4,1845.9,0.6759]
[1743260684622,1.084,1845.9,1845.8,1.3883]
[1743260684822,4.2918,1845.9,1845.8,1.3883]
[1743260685411,1.08411,1845.7,1845.6,1.3451]
[1743260685616,4.29191,1845.7,1845.6,6.4764]
[1743260686515,4.29191,1845.7,1845.6,1.3533]
[1743260686716,1.08417,1845.6,1845.5,3.78213183]
[1743260686923,2.56527,1845.6,1845.5,3.78213183]
[1743260690512,4.29197,1845.7,1845.5,6.21436183]
[1743260690717,3.2078,1845.7,1845.5,5.13013183]
[1743260690921,1.08417,1845.6,1845.5,5.13013183]
[1743260692227,4.29196,1845.7,1845.5,6.21436183]
[1743260692528,4.29196,1845.7,1845.6,1.4481]
[1743260698139,3.2078,1845.7,1845.6,1.4481]
[1743260698639,3.2078,1845.7,1845.6,2.53227]
[1743260698936,3.2078,1845.9,1845.6,1.4481]
[1743260699134,3.2078,1845.9,1845.5,3.78213183]
[1743260699135,1.08406,1845.8,1845.7,2.8456]
[1743260699537,2.48006,1845.8,1845.7,2.8456]
[1743260703535,3.2078,1845.8,1845.7,3.92971]
[1743260703738,4.5568,1846.2,1845.7,2.8456]
[1743260703936,5.64067,1846.2,1846.0,1.08393]
[1743260704240,5.64067,1846.2,1846.1,1.3996]
[1743260704434,5.64067,1846.2,1846.1,2.0753]
[1743260705138,4.29167,1846.2,1846.1,2.0753]
[1743260706542,9.4418,1846.2,1845.2,0.42197536]
[1743260706838,4.29197,1845.6,1845.2,0.6711]
[1743260707039,4.29197,1845.6,1845.1,3.757]
[1743260707342,6.79197,1845.6,1845.1,5.2379]
[1743260707735,8.13657,1845.6,1845.1,5.2379]
[1743260710042,8.13657,1845.6,1845.5,1.83e-06]
[1743260710441,5.63657,1845.6,1845.5,1.83e-06]
[1743260711147,26.64179643,1845.6,1845.5,1.83e-06]
[1743260712535,25.29719643,1845.6,1845.5,1.83e-06]
[1743260712740,24.21302643,1845.6,1845.5,1.08423183]
[1743260712943,24.21302643,1845.6,1845.5,2.49203183]
[1743260713434,3.2078,1845.6,1845.5,2.49203183]
[1743260713634,3.2078,1845.6,1845.5,1.40780183]
[1743260716739,1.08406,1845.8,1845.5,2.49203183]
[1743260716941,1.08413,1845.7,1845.6,1.421]
[1743260717237,3.2078,1845.8,1845.6,1.421]
[1743260717442,4.29186,1845.8,1845.7,4.4452]
[1743260718243,3.2078,1845.8,1845.7,4.4452]
[1743260719048,4.29186,1845.8,1845.7,4.4452]
[1743260720162,3.2078,1845.8,1845.7,4.4452]
[1743260720354,4.29186,1845.8,1845.7,5.9289]
[1743260720552,4.6118,1845.8,1845.7,5.9289]
[1743260720852,3.2078,1845.8,1845.7,7.01301]
[1743260721149,3.2078,1845.8,1845.7,5.9289]
[1743260721551,3.2078,1845.8,1845.7,7.01301]
[1743260722148,3.2078,1845.9,1845.7,7.01301]
[1743260722453,4.2918,1845.9,1845.8,1.4323]
[1743260722661,5.6728,1845.9,1845.8,1.4323]
[1743260725452,4.5888,1845.9,1845.8,2.51636]
[1743260725745,3.2078,1845.9,1845.8,2.51636]
[1743260725949,4.2918,1845.9,1845.8,1.4323]
[1743260726141,5.6393,1845.9,1845.8,1.4323]
[1743260727650,4.5553,1845.9,1845.8,1.4323]
[1743260727851,5.6393,1845.9,1845.8,1.4323]
[1743260729554,4.5553,1845.9,1845.5,1.83e-06]
[1743260729860,2.5089,1845.8,1845.6,2.42686]
[1743260730167,4.29184,1845.9,1845.7,2.42681]
[1743260730364,5.71664,1845.9,1845.8,1.3427]
[1743260730857,5.71664,1845.9,1845.8,2.42676]
[1743260731049,5.71664,1845.9,1845.8,1.3427]
[1743260732457,5.71664,1845.9,1845.8,2.42676]
[1743260732649,4.6326,1845.9,1845.8,2.42676]
[1743260733451,5.7166,1845.9,1845.8,1.3427]
[1743260734059,2.5088,1845.9,1845.8,1.3427]
[1743260734258,5.7166,1845.9,1845.8,1.3427]
[1743260735958,5.7166,1845.9,1845.8,2.42676]
[1743260736163,5.7166,1845.9,1845.8,1.3427]
[1743260740457,2.5088,1845.9,1845.8,1.3427]
[1743260740667,5.7166,1845.9,1845.8,1.3427]
[1743260741663,1.08417,1845.6,1845.5,0.74200183]
[1743260741860,4.29197,1845.6,1845.5,1.83e-06]
[1743260742062,4.29197,1845.6,1845.5,1.47740183]
[1743260747563,1.08417,1845.6,1845.5,2.56163183]
[1743260748370,1.08417,1845.6,1845.5,1.47740183]
[1743260749575,1.08417,1845.6,1845.5,2.56163183]
[1743260751276,4.29197,1845.6,1845.5,1.47740183]
[1743260751575,4.29197,1845.6,1845.5,1.83e-06]
[1743260752375,23.10128837,1845.6,1845.5,1.83e-06]
[1743260755176,23.10128837,1845.6,1845.5,1.36920183]
[1743260756270,25.60128837,1845.6,1845.5,1.83e-06]
[1743260756473,1.0847,1844.7,1844.5,3.687]
[1743260756681,1.08464,1844.8,1844.7,1.3936]
[1743260757080,2.48024,1844.8,1844.7,1.3936]
[1743260757474,1.3956,1844.8,1844.6,0.7419]
[1743260757776,5.6881,1844.7,1844.6,0.00813183]
[1743260758280,8.1881,1844.7,1844.6,0.00813183]
[1743260758478,11.8831,1844.7,1844.6,0.00813183]
[1743260759782,32.88832643,1844.7,1844.6,0.00813183]
[1743260763080,26.69332643,1844.7,1844.6,0.00813183]
[1743260764274,25.29772643,1844.7,1844.6,0.00813183]
[1743260764481,21.00522643,1844.7,1844.6,4.78089183]
[1743260764987,21.00522643,1844.7,1844.6,6.22979183]
[1743260765793,0.00813183,1844.9,1844.7,1.08467]
[1743260765979,0.00813183,1844.9,1844.8,2.53354]
[1743260768100,1.09271183,1844.9,1844.8,1.4489]
[1743260768805,4.30051183,1844.9,1844.8,1.4489]
[1743260769307,1.0847,1844.7,1844.6,0.00813183]
[1743260769996,4.2925,1844.7,1844.6,0.00813183]
[1743260772300,5.7107,1844.7,1844.6,0.00813183]
[1743260773599,1.08467,1844.8,1844.6,1.09289183]
[1743260773798,1.08467,1844.8,1844.7,1.3708]
[1743260773991,4.29247,1844.8,1844.7,1.3708]
[1743260774191,5.76067,1844.8,1844.7,1.3708]
[1743260775005,4.29247,1844.8,1844.7,2.1076]
[1743260775304,3.2078,1844.8,1844.7,3.1923]
[1743260775498,1.09275183,1844.9,1844.7,3.1923]
[1743260775896,1.09275183,1844.9,1844.7,2.1076]
[1743260776097,0.00813183,1844.9,1844.8,1.08464]
[1743260776393,1.09273183,1844.9,1844.7,3.19226]
[1743260776597,0.00813183,1844.9,1844.8,4.77464]
[1743260776999,1.09271183,1844.9,1844.8,3.69]
[1743260778813,0.00813183,1844.9,1844.8,3.69]
[1743260779012,1.09271183,1844.9,1844.8,3.69]
[1743260780806,1.09271183,1844.9,1844.8,4.77464]
[1743260781804,1.09271183,1844.9,1844.8,3.69]
[1743260782305,1.09271183,1844.9,1844.8,4.77464]
[1743260782505,1.09271183,1844.9,1844.8,3.69]
[1743260786809,0.00813183,1844.9,1844.8,4.77464]
[1743260787712,1.09271183,1844.9,1844.8,4.77464]
[1743260788110,0.00813183,1844.9,1844.8,4.77464]
[1743260788614,1.09271183,1844.9,1844.8,4.77464]
[1743260788806,0.00813183,1844.9,1844.8,4.77464]
[1743260789312,1.09271183,1844.9,1844.8,4.77464]
[1743260789913,1.09271183,1844.9,1844.8,3.69]
[1743260790315,1.09271183,1844.9,1844.8,4.77464]
[1743260790606,0.00813183,1844.9,1844.8,4.77464]
[1743260791206,1.09271183,1844.9,1844.8,4.77464]
[1743260791403,1.09271183,1844.9,1844.8,6.16424]
[1743260791608,0.00813183,1844.9,1844.8,6.16424]
[1743260792817,1.09271183,1844.9,1844.8,6.16424]
[1743260793708,0.00813183,1844.9,1844.8,6.16424]
[1743260812233,1.09271183,1844.9,1844.8,6.16424]
[1743260814826,0.00813183,1844.9,1844.8,6.16424]
[1743260815218,1.09271183,1844.9,1844.8,5.0796]
[1743260815832,2.48251183,1844.9,1844.8,5.0796]
[1743260816529,2.48251183,1844.9,1844.8,6.16424]
[1743260816928,1.39793183,1844.9,1844.8,6.16424]
[1743260817621,0.00813183,1844.9,1844.8,6.16424]
[1743260819137,1.09271183,1844.9,1844.8,6.16424]
[1743260819330,1.09271183,1844.9,1844.8,5.0796]
[1743260819530,2.51671183,1844.9,1844.8,5.0796]
[1743260819835,2.51671183,1844.9,1844.8,6.16424]
[1743260820628,1.43213183,1844.9,1844.8,6.16424]
[1743260823127,0.00813183,1844.9,1844.8,6.16424]
[1743260824941,3.21593183,1844.9,1844.6,0.69063183]
[1743260825137,4.2925,1844.7,1844.6,0.69063183]
[1743260825832,6.7925,1844.7,1844.6,0.00813183]
[1743260826844,1.085,1844.2,1844.1,1.4163]